[Event "*** Titled Tuesday Blitz"]
[Site "Chess.com"]
[Date "2020.03.03"]
[Round "5"]
[White "Gordima"]
[Black "JozefKneht"]
[Result "1-0"]
[WhiteElo "2792"]
[BlackElo "2568"]
[TimeControl "180+1"]
[EndTime "13:50:02 PST"]
[Termination "Gordima won by resignation"]

1. d4 {[%clk 0:03:00.9]} 1... d5 {[%clk 0:02:57.6]} 2. c4 {[%clk 0:03:01.2]}
2... e6 {[%clk 0:02:56.1]} 3. Nc3 {[%clk 0:03:01]} 3... Nf6 {[%clk 0:02:56.2]}
4. cxd5 {[%clk 0:03:00.9]} 4... exd5 {[%clk 0:02:55.6]} 5. Bg5 {[%clk
0:03:01.3]} 5... Be7 {[%clk 0:02:56]} 6. e3 {[%clk 0:03:01.6]} 6... O-O {[%clk
0:02:56.5]} 7. Bd3 {[%clk 0:03:02.1]} 7... c6 {[%clk 0:02:56.8]} 8. Nge2 {[%clk
0:03:00.7]} 8... Nbd7 {[%clk 0:02:57.3]} 9. Qc2 {[%clk 0:03:00.5]} 9... Re8
{[%clk 0:02:57.6]} 10. O-O {[%clk 0:03:00.5]} 10... Nf8 {[%clk 0:02:58.1]} 11.
Bh4 {[%clk 0:02:59.1]} 11... Be6 {[%clk 0:02:51.7]} 12. f3 {[%clk 0:02:58.5]}
12... Rc8 {[%clk 0:02:50.9]} 13. Bf2 {[%clk 0:02:49.1]} 13... a6 {[%clk
0:02:43]} 14. Rad1 {[%clk 0:02:47.7]} 14... b5 {[%clk 0:02:41]} 15. h3 {[%clk
0:02:39.6]} 15... c5 {[%clk 0:02:38.1]} 16. dxc5 {[%clk 0:02:38.8]} 16... Bxc5
{[%clk 0:02:38]} 17. Qd2 {[%clk 0:02:36.9]} 17... Qe7 {[%clk 0:02:28.1]} 18. Nd4
{[%clk 0:02:31.2]} 18... N8d7 {[%clk 0:02:21]} 19. Bg3 {[%clk 0:02:16.2]} 19...
Nb6 {[%clk 0:02:10]} 20. Qf2 {[%clk 0:01:59.9]} 20... Qa7 {[%clk 0:01:50.4]} 21.
Nce2 {[%clk 0:01:41.2]} 21... Bd7 {[%clk 0:01:30.9]} 22. b3 {[%clk 0:01:37.3]}
22... b4 {[%clk 0:01:18.7]} 23. Bh4 {[%clk 0:01:34.7]} 23... Be7 {[%clk
0:01:16.9]} 24. g4 {[%clk 0:01:30.9]} 24... Be6 {[%clk 0:01:11.6]} 25. Nf4
{[%clk 0:01:27.3]} 25... Bd8 {[%clk 0:00:48.6]} 26. Bg3 {[%clk 0:01:27.1]} 26...
Nbd7 {[%clk 0:00:43.3]} 27. g5 {[%clk 0:01:22.2]} 1-0

[Event "*** Titled Tuesday Blitz"]
[Site "Chess.com"]
[Date "2020.03.03"]
[Round "5"]
[White "Indianlad"]
[Black "dlp300"]
[Result "1-0"]
[WhiteElo "2935"]
[BlackElo "2661"]
[TimeControl "180+1"]
[EndTime "13:50:05 PST"]
[Termination "Indianlad won by resignation"]

1. c4 {[%clk 0:03:00.9]} 1... Nf6 {[%clk 0:02:59.1]} 2. Nc3 {[%clk 0:03:01.1]}
2... e6 {[%clk 0:02:55.7]} 3. e4 {[%clk 0:03:00.8]} 3... Nc6 {[%clk 0:02:52.7]}
4. d4 {[%clk 0:02:59.9]} 4... Bb4 {[%clk 0:02:51.3]} 5. e5 {[%clk 0:02:54.2]}
5... Ne4 {[%clk 0:02:49.1]} 6. Qd3 {[%clk 0:02:50.7]} 6... d5 {[%clk 0:02:47.4]}
7. a3 {[%clk 0:02:31.7]} 7... Bxc3+ {[%clk 0:02:44.5]} 8. bxc3 {[%clk
0:02:31.7]} 8... O-O {[%clk 0:02:43.4]} 9. Nh3 {[%clk 0:02:21.2]} 9... f6 {[%clk
0:02:32.7]} 10. f3 {[%clk 0:02:21.3]} 10... Ng5 {[%clk 0:02:32.9]} 11. Nxg5
{[%clk 0:02:21.5]} 11... fxg5 {[%clk 0:02:33]} 12. Qc2 {[%clk 0:02:18.2]} 12...
g4 {[%clk 0:02:23.3]} 13. Bd3 {[%clk 0:02:11.1]} 13... gxf3 {[%clk 0:02:14.7]}
14. O-O {[%clk 0:02:11]} 14... Qh4 {[%clk 0:01:49.9]} 15. g3 {[%clk 0:02:05.1]}
15... Qh3 {[%clk 0:01:43.3]} 16. Bf4 {[%clk 0:01:51.6]} 16... Na5 {[%clk
0:01:34.3]} 17. c5 {[%clk 0:01:17.1]} 17... b6 {[%clk 0:01:33.4]} 18. Rxf3
{[%clk 0:01:10.5]} 18... g5 {[%clk 0:01:17]} 19. Raf1 {[%clk 0:01:10.1]} 19...
gxf4 {[%clk 0:01:17.2]} 20. gxf4 {[%clk 0:01:11]} 20... Qh6 {[%clk 0:01:16.8]}
21. Qg2+ {[%clk 0:01:10.4]} 21... Kh8 {[%clk 0:01:14.4]} 22. Rh3 {[%clk
0:01:10.6]} 22... Qg7 {[%clk 0:01:10.1]} 23. Rxh7+ {[%clk 0:01:08.7]} 23... Qxh7
{[%clk 0:01:10.3]} 24. Bxh7 {[%clk 0:01:09.6]} 24... Kxh7 {[%clk 0:01:11.2]} 25.
Rf3 {[%clk 0:01:08.3]} 1-0

[Event "*** Titled Tuesday Blitz"]
[Site "Chess.com"]
[Date "2020.03.03"]
[Round "5"]
[White "Eliwood44"]
[Black "PrinceMurad09"]
[Result "0-1"]
[WhiteElo "2306"]
[BlackElo "2507"]
[TimeControl "180+1"]
[EndTime "13:50:06 PST"]
[Termination "PrinceMurad09 won by resignation"]

1. d4 {[%clk 0:03:00.9]} 1... Nf6 {[%clk 0:02:59.1]} 2. Nf3 {[%clk 0:03:00.6]}
2... g6 {[%clk 0:02:59.2]} 3. Bg5 {[%clk 0:03:00.7]} 3... Bg7 {[%clk 0:02:58.9]}
4. Nbd2 {[%clk 0:02:55.5]} 4... d5 {[%clk 0:02:57.6]} 5. e3 {[%clk 0:02:54.7]}
5... h6 {[%clk 0:02:57.5]} 6. Bf4 {[%clk 0:02:53.8]} 6... Nbd7 {[%clk
0:02:56.9]} 7. h3 {[%clk 0:02:54.1]} 7... c5 {[%clk 0:02:57]} 8. c3 {[%clk
0:02:54]} 8... cxd4 {[%clk 0:02:57.3]} 9. exd4 {[%clk 0:02:54]} 9... O-O {[%clk
0:02:56.2]} 10. Bd3 {[%clk 0:02:54.1]} 10... e6 {[%clk 0:02:56.1]} 11. O-O
{[%clk 0:02:54.2]} 11... a6 {[%clk 0:02:53.2]} 12. a4 {[%clk 0:02:53.6]} 12...
b6 {[%clk 0:02:53]} 13. Re1 {[%clk 0:02:53]} 13... Bb7 {[%clk 0:02:53.2]} 14.
Qe2 {[%clk 0:02:53.4]} 14... Qc8 {[%clk 0:02:36.6]} 15. Ne5 {[%clk 0:02:52.5]}
15... Nxe5 {[%clk 0:02:35.7]} 16. Bxe5 {[%clk 0:02:51.3]} 16... Ne8 {[%clk
0:02:35.7]} 17. Bxg7 {[%clk 0:02:50]} 17... Nxg7 {[%clk 0:02:34.9]} 18. Qe3
{[%clk 0:02:49.9]} 18... Kh7 {[%clk 0:02:33.7]} 19. Nf3 {[%clk 0:02:49.4]} 19...
Nf5 {[%clk 0:02:28.9]} 20. Bxf5 {[%clk 0:02:48.6]} 20... exf5 {[%clk 0:02:29.8]}
21. Ne5 {[%clk 0:02:47.3]} 21... Qe6 {[%clk 0:02:28.1]} 22. Qf4 {[%clk
0:02:46.9]} 22... Rfe8 {[%clk 0:02:21.5]} 23. h4 {[%clk 0:02:46]} 23... Re7
{[%clk 0:02:09.7]} 24. Nd3 {[%clk 0:02:44.6]} 24... Qf6 {[%clk 0:02:09.7]} 25.
Rxe7 {[%clk 0:02:43.7]} 25... Qxe7 {[%clk 0:02:10.6]} 26. a5 {[%clk 0:02:43.1]}
26... bxa5 {[%clk 0:02:10]} 27. Qe5 {[%clk 0:02:41.4]} 27... Qxe5 {[%clk
0:02:09.9]} 28. Nxe5 {[%clk 0:02:41.4]} 28... f6 {[%clk 0:02:10.4]} 29. Nd3
{[%clk 0:02:41.5]} 29... Bc6 {[%clk 0:02:10.5]} 30. Rxa5 {[%clk 0:02:40.6]}
30... Bb5 {[%clk 0:02:10.8]} 31. Nc5 {[%clk 0:02:38.8]} 31... Re8 {[%clk
0:02:10.9]} 32. Ra1 {[%clk 0:02:36.6]} 32... Re2 {[%clk 0:02:10.7]} 33. Rb1
{[%clk 0:02:31.7]} 33... g5 {[%clk 0:02:09.2]} 34. g3 {[%clk 0:02:30.4]} 34...
gxh4 {[%clk 0:02:09]} 35. gxh4 {[%clk 0:02:30.5]} 35... Kg6 {[%clk 0:02:05.4]}
36. Kg2 {[%clk 0:02:29.3]} 36... Kh5 {[%clk 0:02:04.5]} 37. Kf3 {[%clk
0:02:29.6]} 37... Rd2 {[%clk 0:02:02.2]} 38. b3 {[%clk 0:02:26.9]} 38... Bd3
{[%clk 0:02:01.3]} 39. Rg1 {[%clk 0:02:23.8]} 39... Be4+ {[%clk 0:02:00.9]} 40.
Ke3 {[%clk 0:02:22.7]} 40... Rc2 {[%clk 0:02:01.1]} 41. Na4 {[%clk 0:02:20.2]}
41... f4+ {[%clk 0:01:59.9]} 42. Kxf4 {[%clk 0:02:19.4]} 42... Rxf2+ {[%clk
0:02:00.8]} 43. Ke3 {[%clk 0:02:19.5]} 43... Rf3+ {[%clk 0:01:59.4]} 44. Kd2
{[%clk 0:02:19.8]} 44... Rf2+ {[%clk 0:01:58.8]} 45. Ke3 {[%clk 0:02:19.3]}
45... Rf3+ {[%clk 0:01:56.2]} 46. Kd2 {[%clk 0:02:18.9]} 46... f5 {[%clk
0:01:57.1]} 47. c4 {[%clk 0:02:16.8]} 47... Rxb3 {[%clk 0:01:55.2]} 48. c5
{[%clk 0:02:13.7]} 48... Rb4 {[%clk 0:01:52.6]} 49. Nc3 {[%clk 0:02:13.1]} 49...
Rxd4+ {[%clk 0:01:49.5]} 50. Ke2 {[%clk 0:02:13.4]} 50... Rc4 {[%clk 0:01:49.5]}
51. Nd1 {[%clk 0:02:11.8]} 51... Rxc5 {[%clk 0:01:49.7]} 52. Ne3 {[%clk
0:02:11.3]} 52... d4 {[%clk 0:01:50.2]} 53. Nd1 {[%clk 0:02:10.2]} 53... f4
{[%clk 0:01:50.3]} 54. Nf2 {[%clk 0:02:09.9]} 54... Rc2+ {[%clk 0:01:49.8]} 55.
Ke1 {[%clk 0:02:09.6]} 55... Bf3 {[%clk 0:01:49.2]} 56. Nd3 {[%clk 0:02:09]}
56... Re2+ {[%clk 0:01:49.3]} 57. Kf1 {[%clk 0:02:07.8]} 57... Re4 {[%clk
0:01:49.3]} 58. Nf2 {[%clk 0:02:07]} 58... Re3 {[%clk 0:01:47.4]} 59. Nh3 {[%clk
0:02:06.8]} 59... Kxh4 {[%clk 0:01:45.8]} 60. Nxf4 {[%clk 0:02:06]} 60... Bg4
{[%clk 0:01:43.8]} 61. Ng2+ {[%clk 0:02:05.3]} 61... Kg5 {[%clk 0:01:44.3]} 62.
Nxe3 {[%clk 0:02:05.4]} 62... dxe3 {[%clk 0:01:45.2]} 63. Kg2 {[%clk 0:02:02.3]}
63... e2 {[%clk 0:01:44.5]} 64. Ra1 {[%clk 0:02:01.9]} 64... Kf4 {[%clk
0:01:39.3]} 65. Rxa6 {[%clk 0:01:58.2]} 65... e1=Q {[%clk 0:01:39]} 66. Ra4+
{[%clk 0:01:55.8]} 66... Kg5 {[%clk 0:01:38.7]} 67. Ra5+ {[%clk 0:01:55.8]}
67... Kh4 {[%clk 0:01:37.7]} 0-1

[Event "*** Titled Tuesday Blitz"]
[Site "Chess.com"]
[Date "2020.03.03"]
[Round "5"]
[White "VFernandezB"]
[Black "INLOVEWITHF"]
[Result "0-1"]
[WhiteElo "2258"]
[BlackElo "2416"]
[TimeControl "180+1"]
[EndTime "13:50:17 PST"]
[Termination "INLOVEWITHF won by resignation"]

1. e4 {[%clk 0:03:00.9]} 1... e5 {[%clk 0:02:58.7]} 2. Nf3 {[%clk 0:02:59.7]}
2... Nc6 {[%clk 0:02:52.1]} 3. Bc4 {[%clk 0:02:58.9]} 3... Nf6 {[%clk
0:02:51.4]} 4. d4 {[%clk 0:02:57.6]} 4... exd4 {[%clk 0:02:39.9]} 5. Ng5 {[%clk
0:02:56.5]} 5... d5 {[%clk 0:02:33.8]} 6. exd5 {[%clk 0:02:55.3]} 6... Ne5
{[%clk 0:02:29.9]} 7. Qxd4 {[%clk 0:02:54.4]} 7... Nxc4 {[%clk 0:02:28.9]} 8.
Qxc4 {[%clk 0:02:54.5]} 8... Qxd5 {[%clk 0:02:29.2]} 9. Qe2+ {[%clk 0:02:54.5]}
9... Be7 {[%clk 0:02:14.7]} 10. O-O {[%clk 0:02:53.8]} 10... Bf5 {[%clk
0:02:09.7]} 11. Re1 {[%clk 0:02:51.9]} 11... O-O {[%clk 0:02:10.1]} 12. Nc3
{[%clk 0:02:51]} 12... Qc6 {[%clk 0:02:00.2]} 13. Bf4 {[%clk 0:02:47.6]} 13...
Bb4 {[%clk 0:01:57.8]} 14. Be5 {[%clk 0:02:43.1]} 14... Ng4 {[%clk 0:01:55.7]}
15. Qf3 {[%clk 0:02:24.8]} 15... Qxf3 {[%clk 0:01:47.4]} 16. Nxf3 {[%clk
0:02:24.2]} 16... Nxe5 {[%clk 0:01:47.3]} 17. Rxe5 {[%clk 0:02:22]} 17... Bxc2
{[%clk 0:01:47]} 18. Nd5 {[%clk 0:02:20.4]} 18... Bd6 {[%clk 0:01:46.4]} 19. Re2
{[%clk 0:02:20.2]} 19... Bg6 {[%clk 0:01:45.1]} 20. Rae1 {[%clk 0:02:18.2]}
20... f6 {[%clk 0:01:41.9]} 21. Nd4 {[%clk 0:02:17.6]} 21... c6 {[%clk
0:01:38.9]} 22. Ne7+ {[%clk 0:02:16.8]} 22... Kf7 {[%clk 0:01:39.3]} 23. Ndf5
{[%clk 0:02:14.4]} 23... Bxf5 {[%clk 0:01:37.3]} 24. Nxf5 {[%clk 0:02:13.7]}
24... Bc5 {[%clk 0:01:36.6]} 25. a3 {[%clk 0:02:12.5]} 25... g6 {[%clk
0:01:30.9]} 26. Nh6+ {[%clk 0:02:04.9]} 26... Kg7 {[%clk 0:01:29.6]} 27. Ng4
{[%clk 0:02:05.1]} 27... h5 {[%clk 0:01:24.8]} 28. Ne3 {[%clk 0:02:04.6]} 28...
Rfe8 {[%clk 0:01:21.6]} 29. b4 {[%clk 0:02:04.5]} 29... Bxe3 {[%clk 0:01:20.9]}
30. Rxe3 {[%clk 0:02:04]} 30... Kf7 {[%clk 0:01:19.5]} 31. f3 {[%clk 0:02:02.3]}
31... Rxe3 {[%clk 0:01:18.2]} 32. Rxe3 {[%clk 0:02:02.2]} 32... a5 {[%clk
0:01:16.1]} 33. Rd3 {[%clk 0:01:58.6]} 33... axb4 {[%clk 0:01:14.4]} 34. axb4
{[%clk 0:01:57.3]} 34... Ke6 {[%clk 0:01:13.3]} 35. Kf2 {[%clk 0:01:56.4]} 35...
Ra4 {[%clk 0:01:13.6]} 36. Rd4 {[%clk 0:01:55]} 36... c5 {[%clk 0:01:11.1]} 37.
Re4+ {[%clk 0:01:55.1]} 37... Kd5 {[%clk 0:01:11.7]} 38. Rf4 {[%clk 0:01:45.7]}
38... f5 {[%clk 0:01:01.1]} 39. g4 {[%clk 0:01:37.6]} 39... Rxb4 {[%clk
0:00:59.7]} 40. Rxb4 {[%clk 0:01:36.5]} 40... cxb4 {[%clk 0:01:00.6]} 41. gxh5
{[%clk 0:01:37.1]} 0-1

[Event "*** Titled Tuesday Blitz"]
[Site "Chess.com"]
[Date "2020.03.03"]
[Round "5"]
[White "Eloist"]
[Black "FedaMaster"]
[Result "0-1"]
[WhiteElo "2281"]
[BlackElo "2425"]
[TimeControl "180+1"]
[EndTime "13:50:25 PST"]
[Termination "FedaMaster won by resignation"]

1. e4 {[%clk 0:03:00.9]} 1... c5 {[%clk 0:03:00]} 2. Nf3 {[%clk 0:03:00]} 2...
d6 {[%clk 0:03:00.9]} 3. Bb5+ {[%clk 0:02:59.7]} 3... Bd7 {[%clk 0:03:00.2]} 4.
Bxd7+ {[%clk 0:02:59.5]} 4... Qxd7 {[%clk 0:03:01.1]} 5. c4 {[%clk 0:02:59.5]}
5... Nc6 {[%clk 0:03:02]} 6. d4 {[%clk 0:02:59.2]} 6... cxd4 {[%clk 0:03:02.9]}
7. Nxd4 {[%clk 0:02:59.3]} 7... g6 {[%clk 0:03:03.8]} 8. Nc3 {[%clk 0:02:56.9]}
8... Bg7 {[%clk 0:03:04.7]} 9. Be3 {[%clk 0:02:56.7]} 9... Nf6 {[%clk
0:03:05.5]} 10. f3 {[%clk 0:02:56.2]} 10... O-O {[%clk 0:03:06.4]} 11. O-O
{[%clk 0:02:51.6]} 11... Nxd4 {[%clk 0:03:06.7]} 12. Bxd4 {[%clk 0:02:49.2]}
12... Rfc8 {[%clk 0:03:07.6]} 13. Qd3 {[%clk 0:02:46.5]} 13... a6 {[%clk
0:03:06.1]} 14. Bxf6 {[%clk 0:02:37.5]} 14... exf6 {[%clk 0:03:06.1]} 15. a4
{[%clk 0:02:17.3]} 15... f5 {[%clk 0:03:03.6]} 16. Nd5 {[%clk 0:02:10.1]} 16...
fxe4 {[%clk 0:03:01.4]} 17. Qxe4 {[%clk 0:02:03]} 17... Re8 {[%clk 0:02:44.2]}
18. Qd3 {[%clk 0:02:02.6]} 18... Qc6 {[%clk 0:02:31.3]} 19. Rfe1 {[%clk
0:01:46.3]} 19... Qc5+ {[%clk 0:02:24.7]} 20. Kf1 {[%clk 0:01:43.4]} 20... Bxb2
{[%clk 0:02:24.5]} 21. Rab1 {[%clk 0:01:39.6]} 21... Rxe1+ {[%clk 0:02:12.1]}
22. Rxe1 {[%clk 0:01:38.9]} 22... Bg7 {[%clk 0:02:13]} 23. Qe4 {[%clk
0:01:29.7]} 23... Kh8 {[%clk 0:02:02.1]} 24. a5 {[%clk 0:01:04.7]} 24... h5
{[%clk 0:01:58.3]} 25. Nb6 {[%clk 0:01:01.7]} 25... Rf8 {[%clk 0:01:54.9]} 26.
Qxb7 {[%clk 0:00:58.1]} 26... Qxa5 {[%clk 0:01:49.5]} 27. Nd7 {[%clk 0:00:55.3]}
27... Rd8 {[%clk 0:01:45.6]} 28. g3 {[%clk 0:00:48.1]} 28... Qf5 {[%clk
0:01:25.9]} 29. Nb6 {[%clk 0:00:37.8]} 29... Qd3+ {[%clk 0:01:24.6]} 30. Re2
{[%clk 0:00:29.8]} 30... Re8 {[%clk 0:01:18.7]} 0-1

[Event "*** Titled Tuesday Blitz"]
[Site "Chess.com"]
[Date "2020.03.03"]
[Round "5"]
[White "Sibelephant"]
[Black "SahajGrover"]
[Result "1-0"]
[WhiteElo "3028"]
[BlackElo "2718"]
[TimeControl "180+1"]
[EndTime "13:50:32 PST"]
[Termination "Sibelephant won by resignation"]

1. Nf3 {[%clk 0:02:59.1]} 1... Nf6 {[%clk 0:02:59.4]} 2. c4 {[%clk 0:02:59.3]}
2... e6 {[%clk 0:02:59.4]} 3. Nc3 {[%clk 0:02:59.5]} 3... d5 {[%clk 0:02:59.8]}
4. e3 {[%clk 0:02:59.8]} 4... a6 {[%clk 0:02:46.4]} 5. b3 {[%clk 0:02:59.5]}
5... Bd6 {[%clk 0:02:46.1]} 6. Bb2 {[%clk 0:02:59.3]} 6... c6 {[%clk 0:02:45.8]}
7. d4 {[%clk 0:02:56.8]} 7... O-O {[%clk 0:02:43.3]} 8. Bd3 {[%clk 0:02:56.9]}
8... Nbd7 {[%clk 0:02:43.3]} 9. O-O {[%clk 0:02:56.2]} 9... Qe7 {[%clk
0:02:41.4]} 10. e4 {[%clk 0:02:49.9]} 10... dxe4 {[%clk 0:02:35.6]} 11. Nxe4
{[%clk 0:02:49.7]} 11... Nxe4 {[%clk 0:02:35.7]} 12. Bxe4 {[%clk 0:02:50.2]}
12... e5 {[%clk 0:02:22.7]} 13. Re1 {[%clk 0:02:47.3]} 13... f5 {[%clk
0:02:13.8]} 14. dxe5 {[%clk 0:02:47.2]} 14... Bb4 {[%clk 0:02:12]} 15. Bc2
{[%clk 0:02:47]} 15... Bxe1 {[%clk 0:02:10.8]} 16. Qxe1 {[%clk 0:02:47.4]} 16...
Rd8 {[%clk 0:01:46.6]} 17. Bxf5 {[%clk 0:02:37.7]} 17... Nf8 {[%clk 0:01:46.9]}
18. Bc2 {[%clk 0:02:34.7]} 18... Bg4 {[%clk 0:01:44.9]} 19. Nd2 {[%clk
0:02:31.1]} 19... Rd7 {[%clk 0:01:01.4]} 20. Ne4 {[%clk 0:02:27.9]} 20... Rad8
{[%clk 0:01:01.9]} 21. Nd6 {[%clk 0:02:25.6]} 21... Bh5 {[%clk 0:00:56.9]} 22.
Bf5 {[%clk 0:02:20]} 22... Rc7 {[%clk 0:00:52.8]} 23. Bc3 {[%clk 0:02:11.7]}
23... b6 {[%clk 0:00:50.3]} 24. c5 {[%clk 0:02:11.3]} 24... Qg5 {[%clk
0:00:43.9]} 25. cxb6 {[%clk 0:02:08.4]} 25... Re7 {[%clk 0:00:44.4]} 26. Bd2
{[%clk 0:01:46.3]} 26... Qh4 {[%clk 0:00:34.6]} 27. f4 {[%clk 0:01:45.9]} 27...
Qxe1+ {[%clk 0:00:24.7]} 28. Bxe1 {[%clk 0:01:45.9]} 28... g5 {[%clk 0:00:23.7]}
29. b7 {[%clk 0:01:43.6]} 29... Bg6 {[%clk 0:00:18.7]} 30. Bc8 {[%clk 0:01:41]}
1-0

[Event "*** Titled Tuesday Blitz"]
[Site "Chess.com"]
[Date "2020.03.03"]
[Round "5"]
[White "ElGasanov"]
[Black "Entilza"]
[Result "1-0"]
[WhiteElo "2706"]
[BlackElo "2490"]
[TimeControl "180+1"]
[EndTime "13:50:35 PST"]
[Termination "ElGasanov won by resignation"]

1. d4 {[%clk 0:03:00.7]} 1... Nf6 {[%clk 0:01:55.7]} 2. Nf3 {[%clk 0:02:57]}
2... e6 {[%clk 0:01:56.2]} 3. c4 {[%clk 0:02:55.3]} 3... c5 {[%clk 0:01:56.4]}
4. d5 {[%clk 0:02:55]} 4... d6 {[%clk 0:01:56.7]} 5. Nc3 {[%clk 0:02:53.2]} 5...
exd5 {[%clk 0:01:57.3]} 6. cxd5 {[%clk 0:02:53.8]} 6... g6 {[%clk 0:01:57.8]} 7.
Bg5 {[%clk 0:02:54.1]} 7... Bg7 {[%clk 0:01:58.7]} 8. Nd2 {[%clk 0:02:53.5]}
8... h6 {[%clk 0:01:56.2]} 9. Bh4 {[%clk 0:02:53.2]} 9... a6 {[%clk 0:01:53.2]}
10. e3 {[%clk 0:02:44.4]} 10... b5 {[%clk 0:01:51.9]} 11. a4 {[%clk 0:02:43.3]}
11... b4 {[%clk 0:01:49.6]} 12. Nce4 {[%clk 0:02:42.7]} 12... O-O {[%clk
0:01:44.8]} 13. Nxf6+ {[%clk 0:02:31.2]} 13... Bxf6 {[%clk 0:01:43.7]} 14. Bxf6
{[%clk 0:02:31.7]} 14... Qxf6 {[%clk 0:01:43.8]} 15. Nc4 {[%clk 0:02:29.6]}
15... Nd7 {[%clk 0:01:40.7]} 16. a5 {[%clk 0:02:13.2]} 16... Ne5 {[%clk
0:01:34.3]} 17. Nb6 {[%clk 0:02:13.3]} 17... Ra7 {[%clk 0:01:32.9]} 18. Be2
{[%clk 0:02:13.5]} 18... Bd7 {[%clk 0:01:30.7]} 19. f4 {[%clk 0:02:06.5]} 19...
Ng4 {[%clk 0:01:23.1]} 20. Nxd7 {[%clk 0:02:05.4]} 20... Rxd7 {[%clk 0:01:20.5]}
21. Bxg4 {[%clk 0:02:04.8]} 21... Re7 {[%clk 0:01:18.8]} 22. Qe2 {[%clk
0:01:38]} 22... Rfe8 {[%clk 0:01:16.5]} 23. O-O {[%clk 0:01:38.2]} 23... Rxe3
{[%clk 0:01:14.4]} 24. Qd2 {[%clk 0:01:33.8]} 24... h5 {[%clk 0:01:13.1]} 25.
Bf3 {[%clk 0:01:22.2]} 25... Qxf4 {[%clk 0:01:09.8]} 26. Bxh5 {[%clk 0:01:18.3]}
26... Qg5 {[%clk 0:01:04.1]} 27. Rae1 {[%clk 0:01:11.7]} 27... R8e5 {[%clk
0:00:55.1]} 28. Rxe3 {[%clk 0:01:06.1]} 28... Qxe3+ {[%clk 0:00:54.1]} 29. Qxe3
{[%clk 0:01:05.8]} 29... Rxe3 {[%clk 0:00:55]} 30. Bf3 {[%clk 0:00:56.1]} 30...
b3 {[%clk 0:00:50.4]} 31. Kf2 {[%clk 0:00:53.9]} 31... Rd3 {[%clk 0:00:50.1]}
32. Rd1 {[%clk 0:00:52.3]} 32... Rxd1 {[%clk 0:00:46.9]} 33. Bxd1 {[%clk
0:00:52.7]} 33... c4 {[%clk 0:00:47.4]} 34. Ke3 {[%clk 0:00:52.7]} 1-0

[Event "*** Titled Tuesday Blitz"]
[Site "Chess.com"]
[Date "2020.03.03"]
[Round "5"]
[White "renehp"]
[Black "silverback96"]
[Result "0-1"]
[WhiteElo "2311"]
[BlackElo "2058"]
[TimeControl "180+1"]
[EndTime "13:50:49 PST"]
[Termination "silverback96 won by resignation"]

1. e4 {[%clk 0:02:56.3]} 1... c6 {[%clk 0:02:57.6]} 2. Nf3 {[%clk 0:02:51.2]}
2... d5 {[%clk 0:02:58.1]} 3. d3 {[%clk 0:02:50.7]} 3... dxe4 {[%clk 0:02:56.6]}
4. dxe4 {[%clk 0:02:48.1]} 4... Qxd1+ {[%clk 0:02:57.5]} 5. Kxd1 {[%clk
0:02:45.6]} 5... Nf6 {[%clk 0:02:57.9]} 6. Bd3 {[%clk 0:02:44.8]} 6... Nfd7
{[%clk 0:02:42.6]} 7. Ke2 {[%clk 0:02:43.4]} 7... e6 {[%clk 0:02:43]} 8. Nc3
{[%clk 0:02:42.7]} 8... Be7 {[%clk 0:02:41]} 9. Bf4 {[%clk 0:02:42.7]} 9... h6
{[%clk 0:02:38.9]} 10. Rad1 {[%clk 0:02:41.9]} 10... g5 {[%clk 0:02:34.5]} 11.
Bg3 {[%clk 0:02:36.6]} 11... O-O {[%clk 0:02:27.4]} 12. h4 {[%clk 0:02:35.8]}
12... g4 {[%clk 0:02:26.7]} 13. Nh2 {[%clk 0:02:35.3]} 13... f5 {[%clk
0:02:26.1]} 14. exf5 {[%clk 0:02:34.2]} 14... exf5 {[%clk 0:02:27]} 15. Bf4
{[%clk 0:02:32]} 15... Kg7 {[%clk 0:02:24.1]} 16. Nf1 {[%clk 0:02:31.3]} 16...
Nf6 {[%clk 0:02:18.9]} 17. Ne3 {[%clk 0:02:29.3]} 17... Nh5 {[%clk 0:02:08.5]}
18. Be5+ {[%clk 0:02:26.7]} 18... Bf6 {[%clk 0:02:08.8]} 19. Bxf6+ {[%clk
0:02:25.3]} 19... Rxf6 {[%clk 0:02:09.7]} 20. g3 {[%clk 0:02:20.8]} 20... f4
{[%clk 0:02:06.7]} 21. Nf1 {[%clk 0:02:14.4]} 21... Be6 {[%clk 0:01:54]} 22. Ne4
{[%clk 0:02:10.3]} 22... Rf8 {[%clk 0:01:47.5]} 23. Kd2 {[%clk 0:02:06.1]} 23...
Nd7 {[%clk 0:01:43]} 24. Rg1 {[%clk 0:02:04.9]} 24... Ne5 {[%clk 0:01:40]} 25.
Nc5 {[%clk 0:01:58.4]} 25... Bd5 {[%clk 0:01:33.7]} 26. gxf4 {[%clk 0:01:50]}
26... Nf3+ {[%clk 0:01:33.2]} 27. Kc3 {[%clk 0:01:43.7]} 27... Nxg1 {[%clk
0:01:32.5]} 28. Ne3 {[%clk 0:01:43.7]} 28... Nf3 {[%clk 0:01:26.3]} 29. Nxg4
{[%clk 0:01:42.2]} 29... Nxf4 {[%clk 0:01:20.5]} 30. Ne3 {[%clk 0:01:40.2]}
30... Nxd3 {[%clk 0:01:20.2]} 31. cxd3 {[%clk 0:01:39.8]} 31... b6 {[%clk
0:01:08.4]} 32. Na6 {[%clk 0:01:36.2]} 32... Rac8 {[%clk 0:01:01.8]} 33. Nb4
{[%clk 0:01:34.1]} 33... Rfd8 {[%clk 0:00:59.7]} 34. Nf5+ {[%clk 0:01:24.9]}
34... Kf6 {[%clk 0:00:56.7]} 35. Nxh6 {[%clk 0:01:24.9]} 35... Be6 {[%clk
0:00:56.5]} 36. d4 {[%clk 0:01:19.2]} 36... Rh8 {[%clk 0:00:52.9]} 37. Rd3
{[%clk 0:01:18.2]} 37... Ng1 {[%clk 0:00:47.6]} 38. Rg3 {[%clk 0:01:16.6]} 38...
Ne2+ {[%clk 0:00:46.6]} 0-1